Cogmind - Beta 14 @@@ ROGUE MODE // 2025.01.08 @ 18:31:34 Player: Tereza Result: Destroyed by S-27 Virus with Autogun Performance ------------- Evolutions (5) 2500 Regions Visited (13) 2600 Robots Destroyed (257) 1285 Value Destroyed (8737) 8737 Prototype IDs (18) 360 Alien Tech Used (0) 0 Bonus (1952) 1952 TOTAL SCORE: 17434 Bonus ------- High Alert Combat Kills 1117 Follower Combat Kills 35 Entered Garrisons 200 Met Data Miner 300 Acquired ECA 300 Cogmind --------- Core Integrity 0/1000 Matter 300/300 Energy 98/100 System Corruption 7% Temperature Cool (0) Movement Core (50) Location -5/Factory Parts ------- > --- POWER (2) -------- (None) > --- PROPULSION (4) --- (None) > --- UTILITY (9) ------ Improved Melee Analysis Suite Hacking Suite > --- WEAPON (2) ------- (None) > --- INVENTORY (5) ---- Light Fission Core Large Storage Unit Huge Storage Unit Improved Datajack Peak State ------------ > --- POWER ------------ Micro Nuclear Core > --- PROPULSION ------- Nuclear Pulse Array Nuclear Pulse Array > --- UTILITY ---------- Advanced Sensor Array 0b10 Decoder Chip [Looter] Improved Melee Analysis Suite Advanced Melee Analysis Suite Improved Target Analyzer Hacking Suite Hacking Suite > --- WEAPON ----------- Advanced Assault Cannon Makeshift Spear > --- INVENTORY -------- Light Fission Core Linear Gravjet Large Storage Unit Huge Storage Unit Improved Datajack [Rating: 67] Favorites ----------- Power Heavy Ion Engine Engine Heavy Ion Engine Power Core Micro Nuclear Core Propulsion Light Treads Treads Light Treads Wheel Compact Wheel Hover Unit Linear Gravjet Flight Unit Nuclear Pulse Array Utility Hacking Suite Device Graphene Brace Storage Huge Storage Unit Processor Core Analyzer Hackware Hacking Suite Protection Improved Medium Armor Plating Weapon Advanced Assault Cannon Energy Gun Medium Laser Ballistic Gun Gauss Rifle Ballistic Cannon Advanced Assault Cannon Launcher Precision Grenade Launcher Special Weapon Mining Laser Piercing Weapon Makeshift Spear Special Melee Weapon Datajack Build | -11 -10 -9 -9 -8 -7 -7 -7 -6 -6 -6 -6 -5 -5 ------- Run | Yrd Mat Mat Min Mat Fac Gar Fac Fac Low Low Dat Pro Fac Slots Evolved 10 | . . 2 . 2 2 . . 2 . . . . 2 Power 1 | . . . . . . . . 1 . . . . . Propulsion 2 | . . 1 . 1 . . . . . . . . . Utility 7 | . . 1 . 1 2 . . 1 . . . . 2 Weapon . | . . . . . . . . . . . . . . Parts Attached 193 | 6 6 39 2 25 7 11 25 43 6 10 . 3 10 Power 19 | 1 . 4 . 1 . 1 4 6 1 . . . 1 Engine 13 | 1 . 4 . 1 . . 2 4 1 . . . . Core 6 | . . . . . . 1 2 2 . . . . 1 Reactor . | . . . . . . . . . . . . . . Propulsion 63 | 2 1 17 1 9 1 2 9 14 2 . . . 5 Treads 51 | 2 1 17 1 8 1 2 7 10 2 . . . . Leg . | . . . . . . . . . . . . . . Wheel 6 | . . . . . . . 2 4 . . . . . Hover 3 | . . . . 1 . . . . . . . . 2 Flight 3 | . . . . . . . . . . . . . 3 Utility 53 | 1 3 6 . 7 6 3 4 10 2 6 . 2 3 Device 18 | . 2 1 . 1 2 2 2 3 1 3 . 1 . Storage 6 | 1 1 1 . 1 . . . 1 . . . 1 . Processor 7 | . . . . . . . . 3 . 2 . . 2 Hackware 5 | . . . . 1 1 . . 1 . 1 . . 1 Protection 17 | . . 4 . 4 3 1 2 2 1 . . . . Artifact . | . . . . . . . . . . . . . . Weapon 58 | 2 2 12 1 8 . 5 8 13 1 4 . 1 1 Energy Gun 6 | . 1 . . 1 . 1 1 . . 2 . . . Energy Cannon . | . . . . . . . . . . . . . . Ballistic Gun 19 | 2 . 3 . 1 . . 4 9 . . . . . Ballistic Cannon 15 | . . 3 1 5 . 3 1 1 . . . . 1 Launcher 13 | . 1 2 . 1 . 1 2 3 1 2 . . . Special Weapon 2 | . . 2 . . . . . . . . . . . Impact Weapon . | . . . . . . . . . . . . . . Slashing Weapon . | . . . . . . . . . . . . . . Piercing Weapon 1 | . . . . . . . . . . . . 1 . Special Melee Weapon 2 | . . 2 . . . . . . . . . . . Unidentified Prototypes 3 | . . 1 . 1 . . 1 . . . . . . Parts Lost 87 | . 2 2 . 4 2 4 18 28 6 9 . . 12 Power 11 | . 1 . . . . . 2 5 1 1 . . 1 Propulsion 30 | . . . . 1 1 2 7 10 2 3 . . 4 Utility 23 | . . 1 . 1 . 2 6 4 3 1 . . 5 Weapon 23 | . 1 1 . 2 1 . 3 9 . 4 . . 2 Highest Loss Streak 11 | . 1 1 . 1 2 1 4 11 3 7 . . 5 To Critical Strikes . | . . . . . . . . . . . . . . Average Slot Usage (%) 88 | . 90 99 100 97 93 97 87 90 79 17 26 31 48 Engine 6 | . 8 10 11 9 7 . 2 5 5 . . . . Core 1 | . . . . . . 6 4 3 . . . . 2 Treads 25 | . 28 32 33 35 29 28 18 18 19 . . . . Wheel 1 | . . . . . . . 4 4 3 . . . . Device 10 | . 10 11 11 5 7 14 13 17 12 2 6 6 4 Storage 8 | . 14 11 11 9 7 7 7 6 6 4 . . . Processor 2 | . . . . . . . . 10 10 3 13 13 13 Hackware 6 | . . . . 8 15 15 13 5 . 1 6 6 8 Protection 6 | . . 10 11 11 9 7 4 2 5 . . . . Energy Gun 1 | . 8 . . 1 . 1 . . . 2 . . . Ballistic Gun 7 | . 19 11 11 1 . . 8 11 12 . . . . Ballistic Cannon 7 | . . 8 7 15 14 13 5 . . . . . 2 Peak Build Rating 67 | 6 8 21 21 41 47 53 53 65 63 39 19 29 67 Average Rating 35 | 4 6 15 21 36 46 49 45 55 58 14 19 22 45 On Entrance 27 | . 6 7 21 21 41 44 51 43 53 39 19 19 23 Naked Turns . | . . . . . . . . . . . . . . Heaviest Build 123 | 14 30 61 61 113 123 112 112 116 116 92 1 3 15 Greatest Support 107 | 40 40 69 69 91 86 86 107 107 80 80 3 3 26 Greatest Overweight (x) 28 | 2 . 1 . 1 1 1 9 6 7 28 . . . Average Overweight (x) 1 | . . . . . 1 1 4 2 5 1 . . . Largest Inventory Capacity 25 | 8 15 20 20 25 25 25 25 25 25 25 5 15 5 Average Capacity 21 | 7 10 19 20 23 25 25 25 25 25 18 5 5 5 Most Carried 25 | 4 13 20 20 25 25 25 25 25 24 21 5 5 5 Average Carried 20 | 2 8 19 20 23 24 22 23 23 22 14 5 4 4 Final Capacity 25 | 8 15 20 20 25 25 25 25 25 25 5 5 5 5 Final Carried 25 | 4 13 20 20 25 23 23 25 21 21 5 5 5 4 Class Distribution -------------------- 49% | Mutant 29% | Hacker-Mutant 20% | Scavenger-Mutant Dominant Class ---------------- Mutant | -10/Materials Mutant | -9/Materials Mutant | -9/Mines Mutant | -8/Materials Hacker-Mutant | -7/Factory Hacker-Mutant | -7/Garrison Hacker-Mutant | -7/Factory Scavenger-Mutant | -6/Factory Scavenger-Mutant | -6/Lower Caves Mutant | -6/Lower Caves Mutant | -6/Data Miner Mutant | -5/Proximity Caves Hacker-Mutant | -5/Factory Resources | -11 -10 -9 -9 -8 -7 -7 -7 -6 -6 -6 -6 -5 -5 ----------- Run | Yrd Mat Mat Min Mat Fac Gar Fac Fac Low Low Dat Pro Fac Matter Collected 8319 | 194 519 1335 90 1218 474 506 1876 1382 294 312 . 39 80 Remotely . | . . . . . . . . . . . . . . Salvage Created 8781 | . 818 1535 98 1143 453 434 1915 1747 144 82 . 178 234 Parts 523 | . 52 123 4 78 27 18 95 97 4 6 . 2 17 Haulers Intercepted 11 | . 2 5 . 3 . . 1 . . . . . . Recyclers Shooed 8 | . 1 . . 3 . . 2 2 . . . . . Parts Field Recycled . | . . . . . . . . . . . . . . Retrieved Matter . | . . . . . . . . . . . . . . Parts Self-Destructed 15 | . . . . . . . . . 5 6 . 4 . Prevented . | . . . . . . . . . . . . . . Kills | -11 -10 -9 -9 -8 -7 -7 -7 -6 -6 -6 -6 -5 -5 ------- Run | Yrd Mat Mat Min Mat Fac Gar Fac Fac Low Low Dat Pro Fac Combat Hostiles Destroyed 207 | . 15 48 3 37 9 15 44 25 5 5 . . 1 Melee 3 | . . . . . 1 . 1 . . . . . 1 Guns 96 | . 14 20 1 5 . 1 32 20 2 1 . . . Cannons 79 | . . 21 2 29 8 11 7 1 . . . . . AOE 29 | . 1 7 . 3 . 3 4 4 3 4 . . . Classes Destroyed 17 | . 7 4 . 2 1 1 . 2 . . . . . Worker 13 | . 1 . . . 2 . 3 5 . . . . 2 Builder 7 | . . 1 . . 1 . 1 4 . . . . . Hauler 11 | . 2 5 . 3 . . 1 . . . . . . Recycler 12 | . 2 . . 2 2 . 1 4 . . . . 1 Operator 7 | . 2 1 . 2 1 . . . . . . . 1 Watcher 7 | . 1 3 . 1 1 . . 1 . . . . . Swarmer 53 | . 5 21 . 11 1 6 3 2 1 3 . . . Grunt 93 | . 10 15 2 15 4 6 27 13 1 . . . . Brawler 6 | . . 1 1 . . 2 1 . 1 . . . . Duelist 1 | . . . . . . . . 1 . . . . . Protector 1 | . . 1 . . . . . . . . . . . Sentry 27 | . . 10 . 9 1 . 3 3 1 . . . . Specialist 1 | . . . . . . 1 . . . . . . . Hunter 9 | . . . . 1 . . 6 . . 2 . . . Programmer 13 | . . . . . 3 . 4 5 . . . . 1 Heavy 1 | . . . . 1 . . . . . . . . . Behemoth 2 | . . . . . . . . 1 1 . . . . Best Kill Streak 9 | . 4 9 3 4 7 3 6 6 3 2 . . 3 Combat Bots Only 7 | . 3 7 3 4 3 3 5 3 3 2 . . 1 Max Kills in Single Turn 4 | . 2 3 1 3 4 3 3 3 1 1 . . 1 Gunslinging . | . . . . . . . . . . . . . . Exploded 3 | . 1 3 . 3 . 3 2 1 1 1 . . . Melee 1 | . . . . . 1 . 1 . . . . . 1 Uniques/NPCs Destroyed . | . . . . . . . . . . . . . . Combat | -11 -10 -9 -9 -8 -7 -7 -7 -6 -6 -6 -6 -5 -5 -------- Run | Yrd Mat Mat Min Mat Fac Gar Fac Fac Low Low Dat Pro Fac Hostile Shots Fired 1770 | . 64 168 22 186 68 106 423 405 111 66 . 1 150 Missed 539 | . 19 50 5 51 24 21 119 138 43 17 . . 52 Damage Taken 16811 | . 486 1303 230 2055 768 1155 3103 3817 1209 876 . 19 1790 Core 2787 | . 82 126 44 144 47 115 379 325 63 438 . 19 1005 Absorbed by Shields 962 | . . . . . . 188 774 . . . . . . Regen/Repaired (Parts) 161 | . . . . 161 . . . . . . . . . Core Remaining (%) 53 | 100 67 . 57 73 . . 22 . . . . . . Volleys Fired 722 | . 57 130 8 109 43 49 166 120 24 16 . . . Largest 2 | . 2 2 2 2 2 2 2 2 2 2 . . . Hottest 129 | . 70 123 123 100 92 129 129 83 61 81 . . . Shots Fired 1382 | . 114 258 16 219 83 90 304 233 47 18 . . . Gun 850 | . 113 162 8 47 . 13 235 223 40 9 . . . Cannon 493 | . . 87 7 171 83 76 67 2 . . . . . Launcher 36 | . 1 7 . 1 . 1 2 8 7 9 . . . Special 3 | . . 2 1 . . . . . . . . . . Kinetic 1248 | . 99 233 15 195 83 76 280 225 40 2 . . . Thermal 98 | . 14 18 1 23 . 13 22 . . 7 . . . Explosive 36 | . 1 7 . 1 . 1 2 8 7 9 . . . Electromagnetic . | . . . . . . . . . . . . . . Robot Hit Streak 16 | . 14 13 7 11 6 9 14 16 7 2 . . . Robot Miss Streak 11 | . 4 5 4 11 8 3 5 4 6 6 . . . Penetration Max 1 | . . . . 1 . . 1 1 . . . . . Secondary Targets 8 | . . 1 . . . . 4 3 . . . . . Max Gunslinging Chain 1 | . . 1 . . . . 1 1 . . . . . Shots Hit Robots 894 | . 64 157 11 161 37 50 189 161 37 7 . 9 11 Core Hits 612 | . 38 78 5 140 37 23 127 120 24 11 . 3 6 Critical Kills 5 | . . . . . . . 2 3 . . . . . Critical Parts Destroyed 6 | . . . . 2 . . 1 2 1 . . . . Critical Strikes 27 | . . 6 . 3 1 2 8 5 1 . . . 1 Burn 2 | . . 1 . . . . 1 . . . . . . Destroy 11 | . . . . 2 . . 3 5 1 . . . . Blast 13 | . . 5 . 1 1 2 4 . . . . . . Impale 1 | . . . . . . . . . . . . . 1 Melee Attacks 54 | . . 1 . . . . . . . . . 25 28 Impact . | . . . . . . . . . . . . . . Slashing . | . . . . . . . . . . . . . . Piercing 53 | . . . . . . . . . . . . 25 28 Sneak Attacks 7 | . . 1 . . . . . . . . . 2 4 Combat Hostiles . | . . . . . . . . . . . . . . Follow-up Attacks . | . . . . . . . . . . . . . . Damage Inflicted 21927 | . 996 3010 192 3363 1120 1491 4607 4753 974 476 . 481 464 Guns 10174 | . 850 1331 87 686 . 143 2975 3376 688 38 . . . Cannons 6818 | . . 1029 105 2473 746 1195 1212 58 . . . . . Explosions 3905 | . 146 641 . 190 335 149 401 1319 286 438 . . . Melee 945 | . . . . . . . . . . . . 481 464 Ramming 85 | . . 9 . 14 39 4 19 . . . . . . Kinetic 15961 | . 745 2244 192 2878 746 1195 3824 3434 688 15 . . . Thermal 1237 | . 105 116 . 281 . 143 449 120 . 23 . . . Explosive 3598 | . 83 641 . 190 335 149 277 1199 286 438 . . . Electromagnetic 101 | . 63 . . . . . 38 . . . . . . Impact . | . . . . . . . . . . . . . . Slashing . | . . . . . . . . . . . . . . Piercing 945 | . . . . . . . . . . . . 481 464 Highest Corruption 7 | . . . . 2 2 2 6 3 3 3 3 3 7 Average Corruption 2 | . . . . 2 1 2 4 1 3 3 3 3 2 Corruption Purged 2 | . . . . . 2 . . . . . . . . Corruption Blocked . | . . . . . . . . . . . . . . Effects 160 | . . . . 34 7 17 53 7 23 9 . 6 4 Message Errors 38 | . . . . 9 3 2 8 3 8 4 . . 1 Matter Fused 43 | . . . . 9 4 5 11 2 6 4 . 1 1 Heat Flow Errors 20 | . . . . 5 . 3 5 . 4 . . 2 1 Energy Discharges 17 | . . . . 1 . 2 10 1 2 . . 1 . Parts Rejected 2 | . . . . . . . 1 . . 1 . . . Parts Fused 2 | . . . . . . 1 . 1 . . . . . Data Loss (minor) 12 | . . . . 1 . 1 8 . . . . 2 . Data Loss (major) 13 | . . . . 5 . 1 5 . 1 . . . 1 Misfires 5 | . . . . 3 . . 2 . . . . . . Alerts 4 | . . . . 1 . 1 1 . 1 . . . . Weapon Failures 4 | . . . . . . 1 2 . 1 . . . . Overload Shots . | . . . . . . . . . . . . . . Overflow Damage 344 | . . 19 . 20 94 . . 80 . . . 107 24 Projectiles 36 | . . 14 . 12 10 . . . . . . . . Explosions 177 | . . 5 . 8 84 . . 80 . . . . . Melee 131 | . . . . . . . . . . . . 107 24 Knockbacks 77 | . . 3 1 36 18 9 10 . . . . . . Impact . | . . . . . . . . . . . . . . Kinetic 71 | . . 3 1 35 16 9 7 . . . . . . Secondary 6 | . . . . 1 2 . 3 . . . . . . Self-Inflicted Damage 415 | . . . . . 97 . 18 262 . 38 . . . Shots 10 | . . . . . 1 . 1 7 . 1 . . . Rammed 7 | . . 1 . . 3 1 2 . . . . . . Targets Rammed 10 | . . 1 . 1 4 1 3 . . . . . . Kicked . | . . . . . . . . . . . . . . Crushed 3 | . . . . 1 1 . 1 . . . . . . Highest Temperature 385 | . 18 45 127 232 144 370 385 28 272 109 . 118 229 Average Temperature 59 | . 6 13 70 55 46 108 98 10 84 58 . 59 130 Received Heat Transfer 4111 | . 201 309 90 675 45 404 1094 1023 207 . . 9 54 Effects 1 | . . . . . . . . . 1 . . . . Energy Bleed 1 | . . . . . . . . . 1 . . . . Siege Activations . | . . . . . . . . . . . . . . Robots Corrupted . | . . . . . . . . . . . . . . Combat Hostiles . | . . . . . . . . . . . . . . Parts Fried . | . . . . . . . . . . . . . . Impact Corruptions . | . . . . . . . . . . . . . . Robots Melted . | . . . . . . . . . . . . . . Combat Hostiles . | . . . . . . . . . . . . . . Parts Melted . | . . . . . . . . . . . . . . Heat Transferred 2096 | . 296 407 . 355 . 222 679 100 . 37 . . . Parts Sabotaged . | . . . . . . . . . . . . . . Parts Stolen . | . . . . . . . . . . . . . . Parts Stripped . | . . . . . . . . . . . . . . Power Chain Reactions 2 | . 2 . . . . . . . . . . . . Alert | -11 -10 -9 -9 -8 -7 -7 -7 -6 -6 -6 -6 -5 -5 ------- Run | Yrd Mat Mat Min Mat Fac Gar Fac Fac Low Low Dat Pro Fac Peak Influence 1020 | . 301 951 441 600 309 709 1020 672 . . . . 573 Initial 499 | . . 61 370 171 114 122 371 499 . . . . 309 Average 367 | . 182 636 412 232 131 398 473 321 . . . . 431 Maximum Alert Level 3 | . 1 3 2 2 1 3 3 2 . . . . 2 Low Security (%) 28 | 100 49 5 . 46 87 11 . 15 . . . . . Level 1 35 | . 50 13 33 35 12 29 61 61 . . . . 36 Level 2 18 | . . 21 66 17 . 59 13 22 . . . . 63 Level 3 17 | . . 59 . . . . 24 . . . . . . Level 4 . | . . . . . . . . . . . . . . Level 5 . | . . . . . . . . . . . . . . High Security . | . . . . . . . . . . . . . . Max Security . | . . . . . . . . . . . . . . Squads Dispatched 57 | . 3 5 . 5 7 . 21 12 . . . . 4 Investigation 18 | . 1 2 . 1 1 . 6 4 . . . . 3 Extermination 10 | . . . . . 2 . 4 4 . . . . . Reinforcement 16 | . 2 2 . 4 2 . 4 1 . . . . 1 Assault 2 | . . 1 . . . . 1 . . . . . . Garrison 11 | . . . . . 2 . 6 3 . . . . . Intercept . | . . . . . . . . . . . . . . Searches Triggered 1 | . . . . . . . . . . . . . 1 Data Miner Redirects 1 | . . . . . . . . . . . . . 1 Construction Impeded 3 | . . . . . 1 . 1 1 . . . . . Haulers Reinforced . | . . . . . . . . . . . . . . Active Scanning Responses . | . . . . . . . . . . . . . . Cargo Convoy Interrupts . | . . . . . . . . . . . . . . Stealth | -11 -10 -9 -9 -8 -7 -7 -7 -6 -6 -6 -6 -5 -5 --------- Run | Yrd Mat Mat Min Mat Fac Gar Fac Fac Low Low Dat Pro Fac Distress Signals 13 | . 1 3 . 1 2 . 3 1 . . . . 2 Communications Jammed . | . . . . . . . . . . . . . . Distress Signals . | . . . . . . . . . . . . . . Times Spotted 380 | . 33 78 3 70 17 18 72 42 5 5 . 4 33 Peak Tracking Total 18 | . 4 5 3 5 5 6 6 5 3 3 . 5 18 Tactical Retreats 28 | . 3 1 . 4 1 1 1 9 . . . . 8 Traps | -11 -10 -9 -9 -8 -7 -7 -7 -6 -6 -6 -6 -5 -5 ------- Run | Yrd Mat Mat Min Mat Fac Gar Fac Fac Low Low Dat Pro Fac Traps Triggered 18 | . 1 2 . 4 3 3 1 1 . . . . 3 Indirectly 1 | . 1 . . . . . . . . . . . . Trap Hack Attempts 28 | . . 28 . . . . . . . . . . . Triggered 1 | . . 1 . . . . . . . . . . . Disarmed . | . . . . . . . . . . . . . . Reprogrammed 2 | . . 2 . . . . . . . . . . . Reused . | . . . . . . . . . . . . . . Traps Extracted 2 | . . 2 . . . . . . . . . . . Installed . | . . . . . . . . . . . . . . Triggered . | . . . . . . . . . . . . . . Most Traps Carried 2 | . . 2 2 2 . . . . . . . . . Machines | -11 -10 -9 -9 -8 -7 -7 -7 -6 -6 -6 -6 -5 -5 ---------- Run | Yrd Mat Mat Min Mat Fac Gar Fac Fac Low Low Dat Pro Fac Machines Disabled 31 | . 2 6 . . 5 2 7 9 . . . . . Max in Single Turn 4 | . 2 2 . . 2 1 1 4 . . . . . Garrison Access 3 | . . . . . 1 . 1 . . . . . 1 Garrison Relay 1 | . . . . . . 1 . . . . . . . Machines Repaired . | . . . . . . . . . . . . . . Machines Dismantled . | . . . . . . . . . . . . . . Machines Sabotaged . | . . . . . . . . . . . . . . Overloaded Fab Kills . | . . . . . . . . . . . . . . Hacking | -11 -10 -9 -9 -8 -7 -7 -7 -6 -6 -6 -6 -5 -5 --------- Run | Yrd Mat Mat Min Mat Fac Gar Fac Fac Low Low Dat Pro Fac Machines Accessed 71 | . 9 11 . 10 9 1 11 12 . . 3 . 5 Terminals 41 | . 7 8 . 7 4 1 5 6 . . . . 3 Fabricators 7 | . . . . . 1 . 3 3 . . . . . Repair Stations 3 | . . 1 . 1 . . . 1 . . . . . Recycling Units 11 | . 2 2 . 2 2 . 1 2 . . . . . Scanalyzers . | . . . . . . . . . . . . . . Garrison Access 6 | . . . . . 2 . 2 . . . . . 2 Total Hacks 188 | . 28 27 . 25 17 2 22 31 . . 24 . 12 Successful 106 | . 12 13 . 18 8 1 13 13 . . 24 . 4 Failed 82 | . 16 14 . 7 9 1 9 18 . . . . 8 Catastrophic 12 | . . 1 . 3 1 1 2 3 . . . . 1 Database Lockouts . | . . . . . . . . . . . . . . Manual 53 | . 6 14 . 11 4 2 9 4 . . . . 3 Terminals 104 | . 23 20 . 18 9 2 11 14 . . . . 7 Fabricators 18 | . . . . . 1 . 6 11 . . . . . Repair Stations 7 | . . 3 . 2 . . . 2 . . . . . Recycling Units 23 | . 5 4 . 5 4 . 1 4 . . . . . Scanalyzers . | . . . . . . . . . . . . . . Garrison Access 12 | . . . . . 3 . 4 . . . . . 5 Terminal Hacks 66 | . 8 8 . 10 2 1 4 7 . . 24 . 2 Record 6 | . . . . . . . . . . . 6 . . Part Schematic 15 | . . . . . . . 1 1 . . 12 . 1 Robot Schematic 3 | . . . . . . . . . . . 3 . . Robot Analysis 3 | . 2 1 . . . . . . . . . . . Prototype ID Bank 5 | . 1 . . . . . . 1 . . 3 . . Open DSF 1 | . . . . . . . 1 . . . . . . Branch Access Points 3 | . . . . . 1 . . 1 . . . . 1 Alert Level 8 | . . 2 . 3 1 . 1 1 . . . . . Unreport Threat 7 | . . 1 . 4 . . . 2 . . . . . Locate Traps 11 | . 3 3 . 3 . . 1 1 . . . . . Hauler Manifests 2 | . 1 1 . . . . . . . . . . . Zone Layout 1 | . 1 . . . . . . . . . . . . Garrison Registry 1 | . . . . . . 1 . . . . . . . Fabricator Hacks 10 | . . . . . 1 . 5 4 . . . . . Network Status 3 | . . . . . 1 . 1 1 . . . . . Load Schematic 4 | . . . . . . . 2 2 . . . . . Build 3 | . . . . . . . 2 1 . . . . . Repair Station Hacks 4 | . . 1 . 2 . . . 1 . . . . . Scan Component 3 | . . 1 . 1 . . . 1 . . . . . Repair 1 | . . . . 1 . . . . . . . . . Recycling Unit Hacks 15 | . 3 4 . 4 2 . 1 1 . . . . . Report Inventory 10 | . 2 2 . 2 2 . 1 1 . . . . . Retrieve Components 5 | . 1 2 . 2 . . . . . . . . . Scanalyzer . | . . . . . . . . . . . . . . Garrison Access Hacks 4 | . . . . . 2 . 1 . . . . . 1 Unlock Access 1 | . . . . . 1 . . . . . . . . Seal Access 3 | . . . . . 1 . 1 . . . . . 1 Unauthorized Hacks 7 | . 1 . . 2 1 . 2 . . . . . 1 Terminals 7 | . 1 . . 2 1 . 2 . . . . . 1 Track 1 | . . . . 1 . . . . . . . . . Botnet 5 | . 1 . . 1 1 . 2 . . . . . . Disrupt 1 | . . . . . . . . . . . . . 1 Fabricators . | . . . . . . . . . . . . . . Repair Stations . | . . . . . . . . . . . . . . Recycling Units . | . . . . . . . . . . . . . . Scanalyzers . | . . . . . . . . . . . . . . Garrison Access . | . . . . . . . . . . . . . . Data Cores Recovered 1 | . . . . . . . . . . . . . 1 Used 1 | . . . . . . . . . . . . . 1 Hacking Detections 54 | . 8 9 . 8 6 1 8 11 . . . . 3 Full Trace Events 15 | . 1 2 . . 1 1 5 3 . . . . 2 Feedback Events 3 | . . . . . . . 1 1 . . . . 1 Corruption 2 | . . . . . . . 1 . . . . . 1 Hackware Fried 1 | . . . . . . . . 1 . . . . . Feedback Blocked . | . . . . . . . . . . . . . . Robot Schematics Acquired 3 | . . . . . . . . . . . 3 . . Robots Built . | . . . . . . . . . . . . . . Authchips . | . . . . . . . . . . . . . . Time . | . . . . . . . . . . . . . . Total Robot Build Rating . | . . . . . . . . . . . . . . Part Schematics Acquired 15 | . . . . . . . 1 1 . . 12 . 1 Parts Built 6 | . . . . . . . 4 2 . . . . . Authchips . | . . . . . . . . . . . . . . Time 184 | . . . . . . . 126 58 . . . . . Total Part Build Rating 30 | . . . . . . . 16 14 . . . . . Parts Repaired 1 | . . . . 1 . . . . . . . . . Time 38 | . . . . 38 . . . . . . . . . Parts Recycled . | . . . . . . . . . . . . . . Recycled Matter . | . . . . . . . . . . . . . . Retrieved Matter . | . . . . . . . . . . . . . . Retrieved Components 31 | . 3 9 . 19 . . . . . . . . . Parts Scanalyzed . | . . . . . . . . . . . . . . Part Schematics Acquired . | . . . . . . . . . . . . . . Parts Damaged . | . . . . . . . . . . . . . . Bothacking | -11 -10 -9 -9 -8 -7 -7 -7 -6 -6 -6 -6 -5 -5 ------------ Run | Yrd Mat Mat Min Mat Fac Gar Fac Fac Low Low Dat Pro Fac Used RIF Installer . | . . . . . . . . . . . . . . Robots Hacked . | . . . . . . . . . . . . . . Non-combat . | . . . . . . . . . . . . . . Combat . | . . . . . . . . . . . . . . Robot Hacks Applied . | . . . . . . . . . . . . . . Relay Couplers Released 3 | . . . . . . 3 . . . . . . . Machine Destruction 3 | . . . . . . 3 . . . . . . . Fabnet Peak Effective % . | . . . . . . . . . . . . . . Robots Rewired . | . . . . . . . . . . . . . . Allies Hacked . | . . . . . . . . . . . . . . Hacks Repelled . | . . . . . . . . . . . . . . Allies | -11 -10 -9 -9 -8 -7 -7 -7 -6 -6 -6 -6 -5 -5 -------- Run | Yrd Mat Mat Min Mat Fac Gar Fac Fac Low Low Dat Pro Fac Total Allies 3 | . . . 2 . . . . . . . . 1 . Largest Group 2 | . . . 2 2 . . . . . . . 1 . Highest-Rated Group 96 | . . . 43 43 . . . . . . . 96 . Highest-Rated Ally 96 | . . . 31 31 . . . . . . . 96 . Total Orders . | . . . . . . . . . . . . . . Ally Attacks 14 | . . . . 7 . . . . . . . 7 . Total Damage 244 | . . . . 149 . . . . . . . 95 . Kills 3 | . . . . 1 . . . . . . . 2 . Allies Corrupted . | . . . . . . . . . . . . . . Allies Melted . | . . . . . . . . . . . . . . Intel | -11 -10 -9 -9 -8 -7 -7 -7 -6 -6 -6 -6 -5 -5 ------- Run | Yrd Mat Mat Min Mat Fac Gar Fac Fac Low Low Dat Pro Fac Robot Analysis Total 3 | . 2 1 . . . . . . . . . . . Derelict Logs Recovered 2 | . . . . . . . . . . . . 2 . Drone Launches . | . . . . . . . . . . . . . . Drone Recoveries . | . . . . . . . . . . . . . . Decoded 0b10 Intel 16 | . . . . . . . . . . . . . 16 Items 16 | . . . . . . . . . . . . . 16 Exploration | -11 -10 -9 -9 -8 -7 -7 -7 -6 -6 -6 -6 -5 -5 ------------- Run | Yrd Mat Mat Min Mat Fac Gar Fac Fac Low Low Dat Pro Fac Turns Passed 16227 | 81 1430 3167 109 2697 1751 851 2256 1655 1071 398 40 386 335 Spaces Moved 7913 | 47 727 1603 51 1027 688 296 754 625 465 247 78 656 649 Core 1102 | 7 . . . . . . . . . 246 78 656 115 Treads 5208 | 40 727 1603 51 1027 688 296 310 319 146 1 . . . Legs . | . . . . . . . . . . . . . . Wheels 1069 | . . . . . . . 444 306 319 . . . . Hover 26 | . . . . . . . . . . . . . 26 Flight 508 | . . . . . . . . . . . . . 508 Fastest Speed 37 | 50 160 160 160 155 228 225 140 123 190 50 50 50 37 Average Speed 165 | 147 160 160 160 210 228 230 220 193 212 135 50 50 40 Slowest Speed 1450 | 160 160 240 160 238 230 233 570 480 230 1450 50 50 50 Overloaded Moves . | . . . . . . . . . . . . . . Propulsion Burnouts . | . . . . . . . . . . . . . . Robots Hopped 10 | . . . . . . . . . . . . . 10 Cave-ins Triggered . | . . . . . . . . . . . . . . Exploration Rate (%) 50 | 4 98 95 24 95 23 39 23 18 74 40 69 77 24 Regions Visited 13 Branch Regions 5 Pre-discovered Areas 2 | . . . . . . . . . 1 . 1 . . Known Exits Taken 2 | . . . . . 1 . . 1 . . . . . Unknown Exits Taken 10 | 1 1 1 1 1 . . 1 . 1 1 1 1 . Scrap Searched 11 | . . . 1 . . . . . 2 7 . 1 . Spaces Dug 45 | . . 2 . . 9 . 3 9 . . . 10 12 Terrain Destroyed 329 | . 4 20 2 11 50 11 46 72 30 61 . 10 12 Melee 22 | . . . . . . . . . . . . 10 12 Projectile 49 | . . 2 2 1 14 . 10 20 . . . . . AOE 258 | . 4 18 . 10 36 11 36 52 30 61 . . . Terrain Rammed . | . . . . . . . . . . . . . . Walls Destroyed . | . . . . . . . . . . . . . . Machines Disabled . | . . . . . . . . . . . . . . Actions | -11 -10 -9 -9 -8 -7 -7 -7 -6 -6 -6 -6 -5 -5 --------- Run | Yrd Mat Mat Min Mat Fac Gar Fac Fac Low Low Dat Pro Fac Total 9607 | 56 881 1980 61 1358 786 373 1042 827 501 293 78 688 683 Wait 450 | . 75 95 . 140 27 2 74 21 1 8 1 3 3 Move 7883 | 46 726 1602 50 1026 688 295 753 624 464 246 77 655 631 Hop 8 | . . . . . . . . . . . . . 8 Pick Up 135 | 4 12 37 . 29 9 5 14 17 3 4 . . 1 Fast Attach 56 | 6 2 6 . 5 1 . 9 8 2 7 . 2 8 Attach 62 | . 1 5 . 8 3 5 8 23 3 3 . 1 2 Detach 7 | . . 1 . . . . 1 . 2 1 . 1 1 Swap 75 | . 3 28 2 12 3 6 8 12 1 . . . . Drop 108 | . 5 46 1 28 8 1 6 2 1 8 . 1 1 Fire 722 | . 57 130 8 109 43 49 166 120 24 16 . . . Melee 54 | . . 1 . . . . . . . . . 25 28 Ram . | . . . . . . . . . . . . . . Kick . | . . . . . . . . . . . . . . Crush 10 | . . 1 . 1 4 1 3 . . . . . . Escape Stasis 6 | . . . . . . 6 . . . . . . . Rewire 3 | . . . . . . 3 . . . . . . . Trap 28 | . . 28 . . . . . . . . . . . Miscellaneous . | . . . . . . . . . . . . . . Route ------- -11/Scrapyard -10/Materials (discovered 4 exits: *Mat x3 / [*Min]) -9/Materials (discovered 5 exits: *Mat x3 / [*Min x2]) -9/Mines -8/Materials (discovered 3 exits: *Fac x3) -7/Factory (discovered 6 exits: *Fac / *Sto x2 / Low x2 / Gar) -7/Garrison (discovered 4 exits: *Fac x4) -7/Factory (discovered 2 exits: *Fac x2) -6/Factory (discovered 2 exits: *Low x2) -6/Lower Caves -6/Lower Caves -6/Data Miner -5/Proximity Caves -5/Factory (discovered 2 exits: *Upp x2) History --------- Turn | Location | Event 26 | -11/Scrapyard | Discovered new exit (range 16) 82 | -11/Scrapyard | Entered Materials 306 | -10/Materials | Build established: Mutant 539 | -10/Materials | Discovered new exit (range 8) 691 | -10/Materials | Discovered new exit (range 7) 778 | -10/Materials | Discovered new exit (range 7) 957 | -10/Materials | Discovered new exit (range 7) 1512 | -10/Materials | Entered another Materials area 1512 | -9/Materials | Evolved 2 slots: Propulsion x1, Utility x1 1980 | -9/Materials | Discovered new exit (range 11) 2136 | -9/Materials | Discovered new exit (range 13) 2618 | -9/Materials | Build established: Scavenger-Mutant 2706 | -9/Materials | Discovered new exit (range 11) 2712 | -9/Materials | First assault squad dispatched 2811 | -9/Materials | Destroyed 7 combat bots 2968 | -9/Materials | Discovered new exit (range 4) 3637 | -9/Materials | Discovered new exit (range 8) 3901 | -9/Materials | Build established: Mutant 4679 | -9/Materials | Entered Mines 4751 | -9/Mines | Assembled infested the area 4756 | -9/Mines | Assisted by a Guerilla fighting off Assembled 4764 | -9/Mines | Discovered new exit (range 11) 4788 | -9/Mines | Entered Materials 4788 | -8/Materials | Accompanied by 2 allies 4788 | -8/Materials | Evolved 2 slots: Propulsion x1, Utility x1 4793 | -8/Materials | Led the pair of lost Derelicts to an unsafe place 5153 | -8/Materials | Discovered new exit (range 7) 5557 | -8/Materials | Discovered new exit (range 16) 6260 | -8/Materials | Discovered new exit (range 12) 6944 | -8/Materials | Repaired Hvy. Armor Plating 7485 | -8/Materials | Entered Factory 7485 | -7/Factory | Evolved 2 slots: Utility x2 7776 | -7/Factory | Build established: Hacker-Mutant 8053 | -7/Factory | Garrison activated, responded to threat 8265 | -7/Factory | Discovered new exit (range 11) 8397 | -7/Factory | Identified exit to Storage 8397 | -7/Factory | Identified exit to Lower Caves 8747 | -7/Factory | Discovered new exit (range 6) 9236 | -7/Factory | Identified exit to Garrison 9236 | -7/Factory | Entered Garrison 9400 | -7/Garrison | Garrison Relay disabled 9491 | -7/Garrison | Discovered new exit (range 60) 9491 | -7/Garrison | Discovered new exit (range 43) 9491 | -7/Garrison | Discovered new exit (range 43) 9491 | -7/Garrison | Discovered new exit (range 32) 9844 | -7/Garrison | Triggered checkpoint 10052 | -7/Garrison | Triggered checkpoint 10053 | -7/Garrison | Assembled breached garrison interior 10087 | -7/Garrison | Entered Factory 10646 | -7/Factory | Lost 3 parts (3n) 11372 | -7/Factory | Core integrity fell below 50% 11410 | -7/Factory | Discovered new exit (range 15) 11687 | -7/Factory | First assault squad dispatched 11780 | -7/Factory | Lost 4 parts (1p1n2u) 11840 | -7/Factory | Garrison activated, responded to threat 11882 | -7/Factory | Discovered new exit (range 6) 12048 | -7/Factory | Fabricated Med. Treads (x2) 12174 | -7/Factory | Build established: Mutant 12219 | -7/Factory | Garrison activated, responded to threat 12229 | -7/Factory | Fabricated Med. Treads (x2) 12257 | -7/Factory | Garrison activated, responded to threat 12343 | -7/Factory | Entered another Factory area 12343 | -6/Factory | Evolved 2 slots: Power x1, Utility x1 12566 | -6/Factory | Hacking Suite fried by hacking feedback 12746 | -6/Factory | Discovered new exit (range 15) 12958 | -6/Factory | Lost 3 parts (2p1n) 13085 | -6/Factory | Build established: Scavenger-Mutant 13437 | -6/Factory | Lost 3 parts (1p1n1w) 13470 | -6/Factory | Spotted B-75 Beast 13520 | -6/Factory | Destroyed B-75 Beast 13549 | -6/Factory | Lost 11 parts (1p5n2u3w) 13744 | -6/Factory | Garrison activated, responded to threat 13778 | -6/Factory | Fabricated Adv. Medium Treads (x2) 13814 | -6/Factory | Identified exit to Lower Caves 13902 | -6/Factory | Lost 4 parts (1p2n1w) 13997 | -6/Factory | Lost 3 parts (1u2w) 13998 | -6/Factory | Entered Lower Caves 14004 | -6/Lower Caves | Met a Warlord Commander 14005 | -6/Lower Caves | Learned location of Warlord (-5) 14006 | -6/Lower Caves | Warlord Commander delivered Encrypted Comm Array 14008 | -6/Lower Caves | Found Encrypted Comm Array 14656 | -6/Lower Caves | Spotted B-75 Beast 14707 | -6/Lower Caves | Destroyed B-75 Beast 14709 | -6/Lower Caves | Lost 3 parts (2n1u) 14934 | -6/Lower Caves | Attracted the attention of an 0b10 checkpoint 14978 | -6/Lower Caves | Lost 3 parts (1p2u) 15032 | -6/Lower Caves | Discovered new exit (range 10) 15069 | -6/Lower Caves | Entered another Lower Caves area 15076 | -6/Lower Caves | Core integrity fell below 50% 15115 | -6/Lower Caves | Lost 7 parts (1p3n1u2w) 15160 | -6/Lower Caves | Core integrity fell below 20% 15240 | -6/Lower Caves | Build established: Mutant 15465 | -6/Lower Caves | Discovered new exit (range 4) 15467 | -6/Lower Caves | Entered Data Miner 15467 | -6/Data Miner | Discovered new exit (range 6) 15477 | -6/Data Miner | Met Data Miner 15488 | -6/Data Miner | Learned location of Section 7 (-2) 15488 | -6/Data Miner | Acquired the access code to Warlord's prototype stash 15494 | -6/Data Miner | Received God Mode back door access code from Data Miner 15507 | -6/Data Miner | Entered Proximity Caves 15610 | -5/Proximity Caves | Escorted by Enhanced Grunt 15611 | -5/Proximity Caves | Spotter reported a threat 15620 | -5/Proximity Caves | Learned Factory emergency access door positions 15643 | -5/Proximity Caves | Spotter reported a threat 15703 | -5/Proximity Caves | Learned Factory terminal intel 15872 | -5/Proximity Caves | Discovered new exit (range 12) 15893 | -5/Proximity Caves | Entered Factory 15893 | -5/Factory | Evolved 2 slots: Utility x2 15895 | -5/Factory | Loaded intel: 26 terminal locations 15927 | -5/Factory | Discovered new exit (range 13) 16114 | -5/Factory | Lost 4 parts (1p1n1u1w) 16180 | -5/Factory | Lost 3 parts (2n1u) 16190 | -5/Factory | Incoming investigation squad redirected 16193 | -5/Factory | Search patrols dispatched 16194 | -5/Factory | Core integrity fell below 50% 16204 | -5/Factory | Identified exit to Upper Caves 16222 | -5/Factory | Core integrity fell below 20% 16228 | -5/Factory | Destroyed by S-27 Virus with Autogun Last Messages --------------- reinforcements to Terminal F018. 16208_ Imp. Target Analyzer destroyed. 16208_ Slug penetrates Wall. 16211_ C-30 ARC bursts open, deploying its payload. 16211_ P-70 Sage unfolds itself. 16211_ Adv. Sensor Array destroyed. 16212_ System corrupted: Matter fused (-5). 16217_ Penetrated by Slug. 16218_ Slug penetrates H-66 Slayer. 16221_ Hacking Suite destroyed. 16225_ Triggered Fusion Bomb Trap. 16225_ An explosion rips through the floor. 16225_ Neutrino Reactor explodes. 16225_ Door malfunctions. 16226_ Penetrated by Slug. 16226_ Nuclear Pulse Array destroyed. 16226_ Mak. Spear destroyed. 16228_ System corrupted: Substantial component data lost. Map ----- +----------------------------------------------------+ | ?????????????????????????????????????????????????? | | ?????????????????????????????????????????????????? | | ?????????????????????????????????????????????????? | | ?????????????????????????????????????????????????? | | ?????????????????????????????????????????????????? | | ?????????????????????????????????????????????????? | | ?????????????????????????????????????????????????? | | ?????????????????????????????????????????????????? | | ????????+????????????????????????????????????????? | | ?????????????????????????????????????????????????? | | ??????????????????? ??????????????????????????? | | ??????????????????# ??????????????????????????? | | ??????????????????# ?##??????????????????????? | | ??????????????????# ? ??????????????????????? | | ??????????????????# ? ??????????????????????? | | ??????????????????# """ ""?????????????????????? | | ?????????????###### """ """??""????????????????? | | ??????? ????# """ """?"""????????????????? | | ####???? [ "?# ????????????????? | | #???? ""# """ """ """ ???????????????? | | #???? G# """ """ """ ""?????????????? | | #????! "" """ """ """ """ ""?????????? | | # "" ?????????? | | # "" ????????? | | #? ????????? | | ###/###### @ #??????????????? | | #??????????????? | | #??????????????? | | ####### #??????????????? | | #???????? #??????????????? | | #????????????????????????? | | ######+#############/####????????????????????????? | | ??????????????????? ???????????????????????????? | | ?????????????????? ""?????????>????????????????? | | ????????????????? ] ""??????????????????????????? | | ????????????????# F??????????????????????????? | | ????????????????# ""??????????????????????????? | | ????????????????# "???????????????????????????? | | ????????????????# ???????????????????????????? | | ?????????????????? ????????????????????????????? | | ??????????????????? ????????????????????????????? | | ?????????????????????????????????????????????????? | | ?????????????????????????????????????????????????? | | ?????????????????????????????????????????????????? | | ?????????????????????????????????????????????????? | | ?????????????????????????????????????????????????? | | ?????????????????????????????????????????????????? | | ?????????????????????????????????????????????????? | | ?????????????????????????????????????????????????? | | ?????????????????????????????????????????????????? | +----------------------------------------------------+ Best States ------------- Heat Dissipation 64 Energy Generation 29 Energy Capacity 360 Matter Stores 300 Matter Capacity 300 Sight Range 16 Robot Scan Range 16 Terrain Scan Range 14 Terrain Scan Density 10 EM Shielding 2 Armor Coverage 600 Evasion (%) 62 Melee Accuracy 14 Target Analysis 6 Core Analysis 9 Recoil Reduction 4 Offensive Hacking 20 Trap Extractor Capacity 4 Item Schematics ----------------- Med. Treads | -7/Factory | Hacked Adv. Medium Treads | -6/Factory | Hacked Combat Drone Bay | -6/Data Miner | Free Lgt. Regenerative Plating | -6/Data Miner | Free Cld. Gravmag System | -6/Data Miner | Free Prc. Energy Filter | -6/Data Miner | Free Hvy. Proton Missile Launcher | -6/Data Miner | Free Field Propulsion Array | -6/Data Miner | Free Imp. Phase Shifter | -6/Data Miner | Free Dispersion Rifle | -6/Data Miner | Free Wave Gun | -6/Data Miner | Free Imp. Armor Integrity Analyzer | -6/Data Miner | Free Impulse Thruster Array | -6/Data Miner | Free Cmb. Antigrav System | -6/Data Miner | Free Arm. Medium Treads | -5/Factory | Hacked Robot Schematics ------------------ R-10 Processor | -6/Data Miner | Free Y-54 Guardian | -6/Data Miner | Free A-15 Conveyor | -6/Data Miner | Free Fabricated ------------ Med. Treads | x2 | -7/Factory Med. Treads | x2 | -7/Factory Adv. Medium Treads | x2 | -6/Factory Alien Tech Used ----------------- None Achievements -------------- None Challenges ------------ None Game ------ Seed PersonalFireInsulator Manual? 0 Play Time 01:46:03 Cumulative 156.6 hours Start 2025.01.07 @ 11:37:41 End 2025.01.08 @ 18:31:34 Sessions 4 Manual Loads 0 Difficulty Rogue Special Mode None Game No. 193 Rogue 193 Adventurer 0 Explorer 0 Win Type - Total 3 Types 3/0/0/0/0/0/0/0/0 Lore% 68 Gallery% 59 Achievement% 51 Wizard Run 0 Options --------- Layout 1 ASCII 0 Keyboard 1 Movement Numpad Keybinds 0 Fullscreen 1 Font 24/Smallcaps Map View 50x35 Zoom Use 0% Tactical HUD 1 Map Filters NONE Filters NONE Steam 1 RUN: d7ce590d-1db4-4449-b896-e05dfd591c0c